[Event "*** Titled Tuesday Blitz"]
[Site "Chess.com"]
[Date "2020.11.03"]
[Round "1"]
[White "Beltraxtor"]
[Black "manipun1"]
[Result "0-1"]
[WhiteElo "2537"]
[BlackElo "2236"]
[TimeControl "180+1"]
[EndTime "10:08:12 PST"]
[Termination "manipun1 won on time"]

1. e4 {[%clk 0:02:55.2]} 1... d6 {[%clk 0:02:59.4]} 2. d4 {[%clk 0:02:54.9]}
2... Nf6 {[%clk 0:03:00.3]} 3. Nc3 {[%clk 0:02:55.3]} 3... e5 {[%clk 0:02:58.9]}
4. Nf3 {[%clk 0:02:54.8]} 4... Nbd7 {[%clk 0:02:58.4]} 5. Bc4 {[%clk 0:02:53.8]}
5... Be7 {[%clk 0:02:58.5]} 6. O-O {[%clk 0:02:54]} 6... O-O {[%clk 0:02:58.8]}
7. a4 {[%clk 0:02:54.1]} 7... c6 {[%clk 0:02:59]} 8. Re1 {[%clk 0:02:52.1]} 8...
h6 {[%clk 0:02:58.5]} 9. h3 {[%clk 0:02:48.2]} 9... Re8 {[%clk 0:02:58.6]} 10.
Ba2 {[%clk 0:02:43.5]} 10... Bf8 {[%clk 0:02:57.8]} 11. Qd3 {[%clk 0:02:33.8]}
11... exd4 {[%clk 0:02:49]} 12. Qxd4 {[%clk 0:02:32.7]} 12... Nc5 {[%clk
0:02:48.3]} 13. e5 {[%clk 0:02:05]} 13... dxe5 {[%clk 0:02:43.6]} 14. Qxd8
{[%clk 0:02:02.3]} 14... Rxd8 {[%clk 0:02:43.8]} 15. Nxe5 {[%clk 0:02:00.8]}
15... Be6 {[%clk 0:02:43.9]} 16. Bxe6 {[%clk 0:01:45.8]} 16... Nxe6 {[%clk
0:02:42.8]} 17. Be3 {[%clk 0:01:45.8]} 17... Nd5 {[%clk 0:02:26.8]} 18. Nxd5
{[%clk 0:01:22.9]} 18... Rxd5 {[%clk 0:02:25.9]} 19. Nc4 {[%clk 0:01:23.1]}
19... Bc5 {[%clk 0:02:19.2]} 20. Rad1 {[%clk 0:01:21.3]} 20... Bxe3 {[%clk
0:02:13]} 21. Nxe3 {[%clk 0:01:20.5]} 21... Rxd1 {[%clk 0:02:08.5]} 22. Rxd1
{[%clk 0:01:21.4]} 22... Rd8 {[%clk 0:02:08.5]} 23. Rxd8+ {[%clk 0:01:17.3]}
23... Nxd8 {[%clk 0:02:08.6]} 24. Kf1 {[%clk 0:01:10.4]} 24... Kf8 {[%clk
0:02:09]} 25. Nf5 {[%clk 0:01:09.2]} 25... h5 {[%clk 0:02:04.5]} 26. Ke2 {[%clk
0:01:09.3]} 26... g6 {[%clk 0:02:04.4]} 27. Nd4 {[%clk 0:01:08.4]} 27... Ke7
{[%clk 0:02:04.3]} 28. Ke3 {[%clk 0:01:08.5]} 28... Kd6 {[%clk 0:02:02.9]} 29.
Ke4 {[%clk 0:00:51]} 29... b6 {[%clk 0:01:57.1]} 30. g4 {[%clk 0:00:45.6]} 30...
hxg4 {[%clk 0:01:56.2]} 31. hxg4 {[%clk 0:00:46.5]} 31... a6 {[%clk 0:01:55.6]}
32. f4 {[%clk 0:00:42.3]} 32... b5 {[%clk 0:01:41.5]} 33. axb5 {[%clk
0:00:38.4]} 33... axb5 {[%clk 0:01:34.2]} 34. f5 {[%clk 0:00:37]} 34... gxf5+
{[%clk 0:01:31]} 35. gxf5 {[%clk 0:00:35.4]} 35... b4 {[%clk 0:01:19.5]} 36. b3
{[%clk 0:00:29.9]} 36... Nb7 {[%clk 0:01:17.6]} 37. Ne2 {[%clk 0:00:28.1]} 37...
Nc5+ {[%clk 0:01:11.7]} 38. Kd4 {[%clk 0:00:28.3]} 38... Nd7 {[%clk 0:01:12.3]}
39. Ng3 {[%clk 0:00:27.4]} 39... c5+ {[%clk 0:01:11.1]} 40. Ke4 {[%clk 0:00:23]}
40... Nb6 {[%clk 0:01:08.7]} 41. Nh5 {[%clk 0:00:18.9]} 41... Nd5 {[%clk
0:01:07]} 42. Ng7 {[%clk 0:00:17.8]} 42... Nc3+ {[%clk 0:01:03.7]} 43. Kd3
{[%clk 0:00:17.3]} 43... Ke5 {[%clk 0:00:34.6]} 44. Kc4 {[%clk 0:00:17.3]} 44...
Ne4 {[%clk 0:00:34.2]} 45. Ne8 {[%clk 0:00:17.5]} 45... Kxf5 {[%clk 0:00:32.5]}
46. Kd5 {[%clk 0:00:14.4]} 46... Kf4 {[%clk 0:00:28.9]} 47. Ng7 {[%clk
0:00:12.6]} 47... f5 {[%clk 0:00:28.5]} 48. Ke6 {[%clk 0:00:10.8]} 48... Ke3
{[%clk 0:00:22.5]} 49. Nxf5+ {[%clk 0:00:10.1]} 49... Kd2 {[%clk 0:00:21.7]} 50.
Kd5 {[%clk 0:00:10.6]} 50... Kxc2 {[%clk 0:00:19.5]} 51. Kxe4 {[%clk 0:00:06]}
51... Kxb3 {[%clk 0:00:19.6]} 52. Kd3 {[%clk 0:00:04.2]} 52... c4+ {[%clk
0:00:19.4]} 53. Kd2 {[%clk 0:00:04.7]} 53... Kb2 {[%clk 0:00:19.9]} 54. Nd4
{[%clk 0:00:03.6]} 54... c3+ {[%clk 0:00:19.9]} 55. Kd1 {[%clk 0:00:02.2]} 55...
b3 {[%clk 0:00:20.8]} 56. Ne2 {[%clk 0:00:02.3]} 56... c2+ {[%clk 0:00:17.7]}
57. Kd2 {[%clk 0:00:03.2]} 57... Kb1 {[%clk 0:00:17.4]} 58. Kc3 {[%clk
0:00:02.1]} 58... b2 {[%clk 0:00:16]} 0-1

[Event "*** Titled Tuesday Blitz"]
[Site "Chess.com"]
[Date "2020.11.03"]
[Round "1"]
[White "queen_iryna"]
[Black "keshka01"]
[Result "0-1"]
[WhiteElo "2261"]
[BlackElo "2583"]
[TimeControl "180+1"]
[EndTime "10:08:20 PST"]
[Termination "keshka01 won on time"]

1. e4 {[%clk 0:03:00.9]} 1... Nf6 {[%clk 0:02:59.5]} 2. e5 {[%clk 0:02:56.3]}
2... Nd5 {[%clk 0:02:59.5]} 3. d4 {[%clk 0:02:56.2]} 3... d6 {[%clk 0:02:59.8]}
4. c4 {[%clk 0:02:56.3]} 4... Nb6 {[%clk 0:02:59.8]} 5. exd6 {[%clk 0:02:56.6]}
5... exd6 {[%clk 0:03:00.7]} 6. Nc3 {[%clk 0:02:56.1]} 6... Be7 {[%clk
0:03:01.2]} 7. h3 {[%clk 0:02:56.3]} 7... O-O {[%clk 0:03:00.3]} 8. Nf3 {[%clk
0:02:56]} 8... Nc6 {[%clk 0:02:58.2]} 9. Bd3 {[%clk 0:02:55.5]} 9... Bf6 {[%clk
0:02:57.8]} 10. O-O {[%clk 0:02:53.3]} 10... g6 {[%clk 0:02:44.7]} 11. Ne4
{[%clk 0:02:20.7]} 11... Nxd4 {[%clk 0:02:12.5]} 12. Nxf6+ {[%clk 0:02:19.2]}
12... Qxf6 {[%clk 0:02:13.4]} 13. Nxd4 {[%clk 0:02:10]} 13... Qxd4 {[%clk
0:02:14.3]} 14. Qf3 {[%clk 0:01:59.7]} 14... Bd7 {[%clk 0:01:57.4]} 15. Bh6
{[%clk 0:01:58.6]} 15... Bc6 {[%clk 0:01:53]} 16. Qg3 {[%clk 0:01:51.1]} 16...
Rfe8 {[%clk 0:01:53.1]} 17. b3 {[%clk 0:01:43.3]} 17... Nd7 {[%clk 0:01:41.5]}
18. Rad1 {[%clk 0:01:41.4]} 18... Qe5 {[%clk 0:01:41]} 19. Bf4 {[%clk
0:01:33.9]} 19... Qg7 {[%clk 0:01:40]} 20. Rfe1 {[%clk 0:01:28.8]} 20... Nc5
{[%clk 0:01:37.7]} 21. Bc2 {[%clk 0:01:23.8]} 21... Rxe1+ {[%clk 0:01:13.3]} 22.
Rxe1 {[%clk 0:01:24.7]} 22... Re8 {[%clk 0:01:13.6]} 23. Rxe8+ {[%clk
0:01:17.7]} 23... Bxe8 {[%clk 0:01:14.5]} 24. b4 {[%clk 0:01:14.1]} 24... Ne6
{[%clk 0:01:11]} 25. c5 {[%clk 0:00:47.5]} 25... dxc5 {[%clk 0:00:49.3]} 26.
bxc5 {[%clk 0:00:48.4]} 26... Qd4 {[%clk 0:00:46.8]} 27. Be5 {[%clk 0:00:25.5]}
27... Qxc5 {[%clk 0:00:46.8]} 28. Bb3 {[%clk 0:00:25.5]} 28... Bc6 {[%clk
0:00:21.7]} 29. Bxe6 {[%clk 0:00:15.9]} 29... fxe6 {[%clk 0:00:22.6]} 30. Bxc7
{[%clk 0:00:15.9]} 30... Qd5 {[%clk 0:00:21.5]} 31. Be5 {[%clk 0:00:11.4]} 31...
Qe4 {[%clk 0:00:18.9]} 32. Kh2 {[%clk 0:00:10.7]} 32... Qf5 {[%clk 0:00:05.1]}
33. Bd4 {[%clk 0:00:08.3]} 33... e5 {[%clk 0:00:04.9]} 34. Bxe5 {[%clk
0:00:07.1]} 34... g5 {[%clk 0:00:05.3]} 35. Bd4 {[%clk 0:00:06.6]} 35... Qf4
{[%clk 0:00:05.8]} 36. Qxf4 {[%clk 0:00:05.8]} 36... gxf4 {[%clk 0:00:06.7]} 37.
Bxa7 {[%clk 0:00:05.7]} 37... Bd5 {[%clk 0:00:07.1]} 38. Bb8 {[%clk 0:00:05.4]}
38... Bxa2 {[%clk 0:00:06.4]} 39. Bxf4 {[%clk 0:00:04.3]} 39... Bd5 {[%clk
0:00:06.9]} 40. Be5 {[%clk 0:00:04.4]} 40... b5 {[%clk 0:00:07.8]} 41. Kg3
{[%clk 0:00:04.5]} 41... Kf7 {[%clk 0:00:08.4]} 42. Bb2 {[%clk 0:00:04.8]} 42...
Ke6 {[%clk 0:00:09.3]} 43. f3 {[%clk 0:00:03.5]} 43... Kf5 {[%clk 0:00:09.8]}
44. Kf2 {[%clk 0:00:03.8]} 44... b4 {[%clk 0:00:10.2]} 45. g3 {[%clk 0:00:04.2]}
45... Ke6 {[%clk 0:00:11.1]} 46. Ke3 {[%clk 0:00:04.4]} 46... Kf7 {[%clk
0:00:11.4]} 47. f4 {[%clk 0:00:04.6]} 47... Bg2 {[%clk 0:00:11]} 48. g4 {[%clk
0:00:05]} 48... Bxh3 {[%clk 0:00:11.2]} 49. g5 {[%clk 0:00:05.3]} 49... Bf5
{[%clk 0:00:11.9]} 50. Kd4 {[%clk 0:00:05.5]} 50... b3 {[%clk 0:00:12]} 51. Ke5
{[%clk 0:00:05.4]} 51... Kg6 {[%clk 0:00:12.6]} 52. Kd4 {[%clk 0:00:04.7]} 52...
Bc2 {[%clk 0:00:13.5]} 53. Ke5 {[%clk 0:00:04.4]} 53... Bb1 {[%clk 0:00:13.7]}
54. Kd4 {[%clk 0:00:03.6]} 54... Kf5 {[%clk 0:00:14.6]} 55. Ke3 {[%clk
0:00:03.9]} 55... Bc2 {[%clk 0:00:14.8]} 56. Ba1 {[%clk 0:00:04]} 56... Ke6
{[%clk 0:00:14.2]} 57. Bb2 {[%clk 0:00:04.1]} 57... Kd5 {[%clk 0:00:14.5]} 58.
Ba1 {[%clk 0:00:03.5]} 58... Bf5 {[%clk 0:00:15]} 59. Bb2 {[%clk 0:00:02.9]}
59... Kc4 {[%clk 0:00:15.9]} 60. Ba1 {[%clk 0:00:02.8]} 60... Kc5 {[%clk
0:00:15.8]} 61. Bb2 {[%clk 0:00:01.3]} 61... Kb4 {[%clk 0:00:16]} 0-1

[Event "*** Titled Tuesday Blitz"]
[Site "Chess.com"]
[Date "2020.11.03"]
[Round "1"]
[White "Michaelson_11"]
[Black "PIwan"]
[Result "0-1"]
[WhiteElo "2142"]
[BlackElo "2527"]
[TimeControl "180+1"]
[EndTime "10:08:20 PST"]
[Termination "PIwan won on time"]

1. e4 {[%clk 0:03:00.9]} 1... e6 {[%clk 0:03:00.6]} 2. d4 {[%clk 0:03:00.4]}
2... d5 {[%clk 0:03:01.5]} 3. Nc3 {[%clk 0:03:01.1]} 3... Nf6 {[%clk 0:03:01.5]}
4. e5 {[%clk 0:03:01.1]} 4... Nfd7 {[%clk 0:03:02]} 5. f4 {[%clk 0:03:01.8]}
5... c5 {[%clk 0:03:02.7]} 6. Nf3 {[%clk 0:03:02.6]} 6... Nc6 {[%clk 0:03:03.4]}
7. Be3 {[%clk 0:03:02.8]} 7... Qb6 {[%clk 0:03:04]} 8. Na4 {[%clk 0:03:01.9]}
8... Qa5+ {[%clk 0:03:04.3]} 9. c3 {[%clk 0:03:02.3]} 9... cxd4 {[%clk
0:03:04.8]} 10. b4 {[%clk 0:02:55.4]} 10... Nxb4 {[%clk 0:03:05]} 11. cxb4
{[%clk 0:02:55.5]} 11... Bxb4+ {[%clk 0:03:05.9]} 12. Bd2 {[%clk 0:02:55.7]}
12... Bxd2+ {[%clk 0:03:06.1]} 13. Nxd2 {[%clk 0:02:56.6]} 13... b6 {[%clk
0:03:06.6]} 14. Bd3 {[%clk 0:02:54.9]} 14... Ba6 {[%clk 0:03:04.6]} 15. Nb2
{[%clk 0:02:41.2]} 15... Bxd3 {[%clk 0:03:01.2]} 16. Nxd3 {[%clk 0:02:42.1]}
16... Qc3 {[%clk 0:03:01.7]} 17. Qb1 {[%clk 0:02:28.4]} 17... O-O {[%clk
0:02:49.7]} 18. Ke2 {[%clk 0:02:16.1]} 18... f6 {[%clk 0:02:33.3]} 19. Rc1
{[%clk 0:02:10.2]} 19... Qa5 {[%clk 0:02:32.4]} 20. Nb3 {[%clk 0:02:02.9]} 20...
Qa6 {[%clk 0:02:27.9]} 21. Nxd4 {[%clk 0:01:47.4]} 21... fxe5 {[%clk 0:01:44.5]}
22. Qb5 {[%clk 0:01:42.2]} 22... Qxb5 {[%clk 0:01:30.1]} 23. Nxb5 {[%clk
0:01:43.1]} 23... e4 {[%clk 0:01:10.4]} 24. Ne5 {[%clk 0:01:26]} 24... Nc5
{[%clk 0:01:10.2]} 25. g3 {[%clk 0:01:17.9]} 25... g5 {[%clk 0:01:07.4]} 26. Rg1
{[%clk 0:00:58.5]} 26... Rad8 {[%clk 0:00:43.8]} 27. Nd4 {[%clk 0:00:26]} 27...
Rd6 {[%clk 0:00:32]} 28. Rac1 {[%clk 0:00:24]} 28... h6 {[%clk 0:00:29.5]} 29.
h4 {[%clk 0:00:21]} 29... Kg7 {[%clk 0:00:25.9]} 30. Nb5 {[%clk 0:00:17.7]}
30... Rdd8 {[%clk 0:00:23.2]} 31. hxg5 {[%clk 0:00:17]} 31... hxg5 {[%clk
0:00:23]} 32. Nd4 {[%clk 0:00:16.9]} 32... Rh8 {[%clk 0:00:20.1]} 33. Rh1 {[%clk
0:00:16.3]} 33... Kf6 {[%clk 0:00:17]} 34. Ng4+ {[%clk 0:00:12.2]} 34... Ke7
{[%clk 0:00:17]} 35. Nc6+ {[%clk 0:00:11.2]} 35... Kd6 {[%clk 0:00:17.1]} 36.
Nxd8 {[%clk 0:00:11.3]} 36... Rxd8 {[%clk 0:00:18]} 37. Ne5 {[%clk 0:00:10.9]}
37... d4 {[%clk 0:00:17.1]} 38. Rh7 {[%clk 0:00:09.7]} 38... gxf4 {[%clk
0:00:15.5]} 39. Nf7+ {[%clk 0:00:09.5]} 39... Kd5 {[%clk 0:00:15.1]} 40. Nxd8
{[%clk 0:00:09.6]} 40... f3+ {[%clk 0:00:15.7]} 41. Kf2 {[%clk 0:00:09.6]} 41...
Nd3+ {[%clk 0:00:16]} 42. Kg1 {[%clk 0:00:09.6]} 42... Nxc1 {[%clk 0:00:16.9]}
43. Rd7+ {[%clk 0:00:09.8]} 43... Kc4 {[%clk 0:00:15.1]} 44. Nxe6 {[%clk
0:00:10]} 44... Ne2+ {[%clk 0:00:14.8]} 45. Kf2 {[%clk 0:00:10.2]} 45... d3
{[%clk 0:00:13]} 46. Nf4 {[%clk 0:00:10.1]} 46... Nd4 {[%clk 0:00:07.5]} 47.
Rc7+ {[%clk 0:00:08.1]} 47... Kb5 {[%clk 0:00:06.6]} 48. Ke3 {[%clk 0:00:06.8]}
48... Nf5+ {[%clk 0:00:05.4]} 49. Kxe4 {[%clk 0:00:04.2]} 49... f2 {[%clk
0:00:05.5]} 50. Kxf5 {[%clk 0:00:04.5]} 50... f1=Q {[%clk 0:00:05.8]} 51. g4
{[%clk 0:00:04.3]} 51... d2 {[%clk 0:00:05.5]} 52. g5 {[%clk 0:00:04.1]} 52...
d1=Q {[%clk 0:00:05.7]} 53. g6 {[%clk 0:00:04.5]} 53... Qb1+ {[%clk 0:00:05.4]}
54. Kg5 {[%clk 0:00:01.4]} 54... Qxf4+ {[%clk 0:00:05]} 55. Kxf4 {[%clk
0:00:01.3]} 55... Qxg6 {[%clk 0:00:05.9]} 0-1

[Event "*** Titled Tuesday Blitz"]
[Site "Chess.com"]
[Date "2020.11.03"]
[Round "1"]
[White "MashaFromRussia"]
[Black "PavlovDanila"]
[Result "0-1"]
[WhiteElo "2334"]
[BlackElo "2665"]
[TimeControl "180+1"]
[EndTime "10:08:28 PST"]
[Termination "PavlovDanila won by resignation"]

1. d4 {[%clk 0:02:59.1]} 1... Nf6 {[%clk 0:02:58.8]} 2. c4 {[%clk 0:02:59.6]}
2... g6 {[%clk 0:02:58.4]} 3. Nf3 {[%clk 0:03:00]} 3... Bg7 {[%clk 0:02:57.5]}
4. g3 {[%clk 0:03:00.6]} 4... d6 {[%clk 0:02:57.8]} 5. Bg2 {[%clk 0:03:01.2]}
5... O-O {[%clk 0:02:58.4]} 6. O-O {[%clk 0:03:01.8]} 6... Nbd7 {[%clk 0:02:59]}
7. Nc3 {[%clk 0:03:01.9]} 7... e5 {[%clk 0:02:59.7]} 8. dxe5 {[%clk 0:03:02.8]}
8... dxe5 {[%clk 0:02:59.7]} 9. Qc2 {[%clk 0:03:02.5]} 9... c6 {[%clk
0:02:59.6]} 10. e4 {[%clk 0:03:02.8]} 10... Qc7 {[%clk 0:02:57.4]} 11. Rd1
{[%clk 0:03:02.8]} 11... Rd8 {[%clk 0:02:57.8]} 12. h3 {[%clk 0:03:01.9]} 12...
b6 {[%clk 0:02:43.4]} 13. Be3 {[%clk 0:03:01.6]} 13... Ba6 {[%clk 0:02:39.8]}
14. b3 {[%clk 0:02:59.3]} 14... Nf8 {[%clk 0:02:38.9]} 15. Rxd8 {[%clk
0:02:55.8]} 15... Rxd8 {[%clk 0:02:39.8]} 16. Rd1 {[%clk 0:02:56.1]} 16... Rxd1+
{[%clk 0:02:38.3]} 17. Qxd1 {[%clk 0:02:57]} 17... Ne6 {[%clk 0:02:38.5]} 18.
Ng5 {[%clk 0:02:32.9]} 18... Nxg5 {[%clk 0:01:50]} 19. Bxg5 {[%clk 0:02:33.8]}
19... Nd7 {[%clk 0:01:45.4]} 20. Be7 {[%clk 0:02:29]} 20... Nf8 {[%clk
0:01:41.5]} 21. Qd6 {[%clk 0:02:02.2]} 21... Qxd6 {[%clk 0:01:41.5]} 22. Bxd6
{[%clk 0:02:03.1]} 22... Bc8 {[%clk 0:01:42]} 23. Nd1 {[%clk 0:01:58]} 23... Ne6
{[%clk 0:01:37.9]} 24. Nb2 {[%clk 0:01:58.3]} 24... Nd4 {[%clk 0:01:28.7]} 25.
Nd3 {[%clk 0:01:57.5]} 25... f6 {[%clk 0:01:28.9]} 26. Nb4 {[%clk 0:01:52.6]}
26... Bf8 {[%clk 0:01:23.6]} 27. Bxf8 {[%clk 0:01:49.1]} 27... Kxf8 {[%clk
0:01:24.5]} 28. Kf1 {[%clk 0:01:46.2]} 28... Ke7 {[%clk 0:01:20.8]} 29. Ke1
{[%clk 0:01:43.9]} 29... Be6 {[%clk 0:00:47.4]} 30. Kd2 {[%clk 0:01:43.5]} 30...
a5 {[%clk 0:00:47.4]} 31. Nc2 {[%clk 0:01:31.3]} 31... Kd6 {[%clk 0:00:43.3]}
32. Ne1 {[%clk 0:01:03.6]} 32... a4 {[%clk 0:00:38.3]} 33. Kc3 {[%clk
0:00:54.6]} 33... axb3 {[%clk 0:00:26.4]} 34. axb3 {[%clk 0:00:55.5]} 34... b5
{[%clk 0:00:26.9]} 35. Nd3 {[%clk 0:00:48.5]} 35... c5 {[%clk 0:00:17.3]} 36.
Nc1 {[%clk 0:00:37.5]} 36... Kc6 {[%clk 0:00:14.2]} 37. cxb5+ {[%clk 0:00:33.3]}
37... Nxb5+ {[%clk 0:00:13.3]} 38. Kb2 {[%clk 0:00:32]} 38... Nd4 {[%clk
0:00:13.7]} 39. Bf1 {[%clk 0:00:31.2]} 39... h5 {[%clk 0:00:13.6]} 40. h4 {[%clk
0:00:30.8]} 40... Nf3 {[%clk 0:00:11.1]} 41. Kc3 {[%clk 0:00:27.8]} 41... Nd4
{[%clk 0:00:10.5]} 42. Bc4 {[%clk 0:00:27.9]} 42... Bg4 {[%clk 0:00:08.4]} 43.
Bd5+ {[%clk 0:00:26.1]} 43... Kd6 {[%clk 0:00:08.4]} 44. Nd3 {[%clk 0:00:25.1]}
44... g5 {[%clk 0:00:08.8]} 45. Nb2 {[%clk 0:00:23.8]} 45... gxh4 {[%clk
0:00:08.5]} 46. gxh4 {[%clk 0:00:24.2]} 46... Nf3 {[%clk 0:00:09.1]} 47. Nc4+
{[%clk 0:00:23.4]} 47... Ke7 {[%clk 0:00:09.8]} 48. Ne3 {[%clk 0:00:17.7]} 48...
Nxh4 {[%clk 0:00:10]} 49. Kc4 {[%clk 0:00:18.3]} 49... Kd6 {[%clk 0:00:08.9]}
50. Kb5 {[%clk 0:00:16.5]} 50... Be2+ {[%clk 0:00:07.1]} 51. Kb6 {[%clk
0:00:15.7]} 51... Nf3 {[%clk 0:00:03.3]} 52. Nf5+ {[%clk 0:00:15.9]} 52... Kd7
{[%clk 0:00:04]} 53. Kxc5 {[%clk 0:00:15.7]} 53... h4 {[%clk 0:00:04.9]} 54. b4
{[%clk 0:00:15.2]} 54... h3 {[%clk 0:00:05.1]} 55. b5 {[%clk 0:00:13.3]} 55...
h2 {[%clk 0:00:05.3]} 56. Ng3 {[%clk 0:00:13.8]} 56... Nd4 {[%clk 0:00:04]} 57.
b6 {[%clk 0:00:10.4]} 57... Bf3 {[%clk 0:00:04.6]} 58. b7 {[%clk 0:00:07.6]}
58... Kc7 {[%clk 0:00:04.9]} 59. b8=Q+ {[%clk 0:00:05.1]} 59... Kxb8 {[%clk
0:00:05.2]} 60. Kd6 {[%clk 0:00:06]} 60... Ne2 {[%clk 0:00:05.1]} 61. Nh1 {[%clk
0:00:04]} 61... Bxh1 {[%clk 0:00:05.2]} 62. Ke7 {[%clk 0:00:04.9]} 62... Bf3
{[%clk 0:00:05.8]} 63. Kxf6 {[%clk 0:00:05.8]} 63... h1=Q {[%clk 0:00:06.4]} 64.
Kxe5 {[%clk 0:00:06.7]} 0-1

[Event "*** Titled Tuesday Blitz"]
[Site "Chess.com"]
[Date "2020.11.03"]
[Round "1"]
[White "Semetey"]
[Black "marabu44"]
[Result "1-0"]
[WhiteElo "2581"]
[BlackElo "2266"]
[TimeControl "180+1"]
[EndTime "10:08:28 PST"]
[Termination "Semetey won by checkmate"]

1. e4 {[%clk 0:03:00.5]} 1... e5 {[%clk 0:02:59]} 2. Nc3 {[%clk 0:03:00.1]} 2...
Nc6 {[%clk 0:02:56.2]} 3. Bc4 {[%clk 0:02:58.7]} 3... Nf6 {[%clk 0:02:51.9]} 4.
d3 {[%clk 0:02:58.6]} 4... Na5 {[%clk 0:02:45.5]} 5. Nf3 {[%clk 0:02:38.4]} 5...
Nxc4 {[%clk 0:02:44.1]} 6. dxc4 {[%clk 0:02:38.5]} 6... d6 {[%clk 0:02:44.7]} 7.
h3 {[%clk 0:02:37.5]} 7... Be7 {[%clk 0:02:43.9]} 8. Be3 {[%clk 0:02:35.4]} 8...
Be6 {[%clk 0:02:42.1]} 9. b3 {[%clk 0:02:34.1]} 9... c6 {[%clk 0:02:38.9]} 10.
Qd3 {[%clk 0:02:26.6]} 10... Qc7 {[%clk 0:02:37.3]} 11. a4 {[%clk 0:02:22.2]}
11... a5 {[%clk 0:02:33.9]} 12. g4 {[%clk 0:02:17.4]} 12... h6 {[%clk
0:02:31.4]} 13. Rg1 {[%clk 0:01:29.9]} 13... g5 {[%clk 0:02:21.6]} 14. Nd2
{[%clk 0:01:09]} 14... Bd7 {[%clk 0:02:13.4]} 15. f3 {[%clk 0:01:08.4]} 15...
Be6 {[%clk 0:02:05]} 16. Nf1 {[%clk 0:01:08.4]} 16... d5 {[%clk 0:01:46.2]} 17.
cxd5 {[%clk 0:01:07.1]} 17... O-O-O {[%clk 0:01:45.2]} 18. Qc4 {[%clk
0:00:48.7]} 18... cxd5 {[%clk 0:01:43.4]} 19. Qxc7+ {[%clk 0:00:48.7]} 19...
Kxc7 {[%clk 0:01:43]} 20. Nb5+ {[%clk 0:00:45.6]} 20... Kb8 {[%clk 0:01:41.8]}
21. Ba7+ {[%clk 0:00:45.2]} 21... Ka8 {[%clk 0:01:35]} 22. Bb6 {[%clk
0:00:42.9]} 22... Rc8 {[%clk 0:01:26.4]} 23. O-O-O {[%clk 0:00:20.5]} 23... d4
{[%clk 0:01:20.5]} 24. Nc7+ {[%clk 0:00:19.7]} 24... Kb8 {[%clk 0:01:18.7]} 25.
Nxe6 {[%clk 0:00:20.6]} 25... fxe6 {[%clk 0:01:17.6]} 26. Bxa5 {[%clk
0:00:20.9]} 26... Nd7 {[%clk 0:01:01.5]} 27. Be1 {[%clk 0:00:19.8]} 27... Rhf8
{[%clk 0:00:57.1]} 28. Nd2 {[%clk 0:00:19.4]} 28... Nc5 {[%clk 0:00:56.3]} 29.
Kb2 {[%clk 0:00:19.5]} 29... d3 {[%clk 0:00:33.8]} 30. c3 {[%clk 0:00:19]} 30...
Rcd8 {[%clk 0:00:24.4]} 31. Bg3 {[%clk 0:00:18.8]} 31... Bd6 {[%clk 0:00:20.2]}
32. Rgf1 {[%clk 0:00:18.7]} 32... Bc7 {[%clk 0:00:19.8]} 33. Ra1 {[%clk
0:00:18]} 33... Rf7 {[%clk 0:00:17.7]} 34. b4 {[%clk 0:00:18]} 34... Nd7 {[%clk
0:00:17.1]} 35. a5 {[%clk 0:00:18]} 35... Ka7 {[%clk 0:00:14.5]} 36. Kb3 {[%clk
0:00:18.2]} 36... Nb8 {[%clk 0:00:14]} 37. Rad1 {[%clk 0:00:17.1]} 37... Nc6
{[%clk 0:00:13.9]} 38. Nc4 {[%clk 0:00:17.3]} 38... b5 {[%clk 0:00:12.3]} 39.
axb6+ {[%clk 0:00:16.8]} 39... Bxb6 {[%clk 0:00:12.8]} 40. Ra1+ {[%clk
0:00:15.6]} 40... Kb7 {[%clk 0:00:12.8]} 41. b5 {[%clk 0:00:14.6]} 41... Ne7
{[%clk 0:00:11.9]} 42. Ra6 {[%clk 0:00:14.9]} 42... Nc8 {[%clk 0:00:09.7]} 43.
Nxe5 {[%clk 0:00:13.5]} 43... Rc7 {[%clk 0:00:08.4]} 44. Nc6 {[%clk 0:00:12.9]}
44... Rxc6 {[%clk 0:00:08.8]} 45. bxc6+ {[%clk 0:00:10.2]} 45... Kxa6 {[%clk
0:00:09.5]} 46. Kb4 {[%clk 0:00:08.2]} 46... Ba5+ {[%clk 0:00:08.9]} 47. Kc5
{[%clk 0:00:08]} 47... d2 {[%clk 0:00:08.8]} 48. Rd1 {[%clk 0:00:07.5]} 48...
Bb6+ {[%clk 0:00:08.8]} 49. Kb4 {[%clk 0:00:07.2]} 49... Ba5+ {[%clk 0:00:08.3]}
50. Kc5 {[%clk 0:00:07.4]} 50... Rd3 {[%clk 0:00:08.1]} 51. c4 {[%clk
0:00:06.8]} 51... Bb6+ {[%clk 0:00:07.2]} 52. Kb4 {[%clk 0:00:06.5]} 52... Ba5+
{[%clk 0:00:07.5]} 53. Kc5 {[%clk 0:00:06.8]} 53... Ne7 {[%clk 0:00:07.7]} 54.
c7 {[%clk 0:00:05.8]} 54... Nc8 {[%clk 0:00:07.4]} 55. Kc6 {[%clk 0:00:05.5]}
55... Rxf3 {[%clk 0:00:05.9]} 56. Bd6 {[%clk 0:00:04.1]} 56... Re3 {[%clk
0:00:05.9]} 57. c5 {[%clk 0:00:04]} 57... Re1 {[%clk 0:00:05.9]} 58. Rxd2 {[%clk
0:00:03.3]} 58... Bxd2 {[%clk 0:00:06.2]} 59. Kd7 {[%clk 0:00:04.2]} 59... Kb7
{[%clk 0:00:05.5]} 60. c6+ {[%clk 0:00:04.5]} 60... Ka8 {[%clk 0:00:03.8]} 61.
Kxc8 {[%clk 0:00:04.7]} 61... Rd1 {[%clk 0:00:04.5]} 62. Kd7 {[%clk 0:00:04.9]}
62... Bf4 {[%clk 0:00:02.8]} 63. c8=Q+ {[%clk 0:00:05.8]} 63... Ka7 {[%clk
0:00:03.3]} 64. Qb7# {[%clk 0:00:06.5]} 1-0